Workbook

Sheet NSU
B1: Päivi Aalto | E1: 12.12.1972
B2: SUPERPESIS | E2: Runkosarja | I2: Kärkilyönnit (KL), pesänvälit | P2: Ylempi loppusarja | U2: Alempi loppusarja | AB2: Arvo-ottelut ja mitalit
B3: Vuosi | C3: Sija | D3: Seura | E3: OTT | F3: KUN | G3: LÖI | H3: TOI | I3: KL | J3: 0 > 1 | K3: 1 > 2 | L3: 2 > 3 | M3: 3 > k | N3: KL-% | P3: OTT | Q3: KUN | R3: LÖI | S3: TOI | T3: KL | U3: OTT | V3: KUN | W3: LÖI | X3: TOI | Y3: KL | Z3: IL | AA3: LL | AB3: Halli | AC3: K | AD3: H | AE3: P
B4: 1989 | C4: 10. | D4: Manse PP | E4: 1 | F4: 0 | G4: 0 | H4: 0 | I4: 1 | J4: 1 | K4: 0 | L4: 0 | M4: =PRODUCT(F4+G4) -> 0 | N4: ----
B5: 1990 | C5: 12. | D5: Manse PP | E5: 19 | F5: 0 | G5: 1 | H5: 4 | I5: 25 | J5: 10 | K5: 7 | L5: 7 | M5: =SUM(F5+G5) -> 1 | N5: 29.8 % | O5: =PRODUCT(I5/N5) -> 83.89261745
B6: 1991 | C6: 1. | D6: Manse PP | F6: ykkössarja
B7: 1992 | C7: 12. | D7: Manse PP | E7: 21 | F7: 0 | G7: 2 | H7: 10 | I7: 69 | J7: 16 | K7: 33 | L7: 18 | M7: =SUM(F7+G7) -> 2 | N7: 48.3 % | O7: =PRODUCT(I7/N7) -> 142.8571429
B8: 1993 | C8: 11. | D8: Turku-Pesis | E8: 14 | F8: 0 | G8: 3 | H8: 2 | I8: 19 | J8: 10 | K8: 4 | L8: 2 | M8: =SUM(F8+G8) -> 3 | N8: 40.4 % | O8: =PRODUCT(I8/N8) -> 47.02970297
B9: 1994 | C9: 8. | D9: KarKu | F9: ykköspesis
B10: 1995 | C10: 10. | D10: Turku-Pesis | E10: 12 | F10: 0 | G10: 2 | H10: 1 | I10: 4 | J10: 1 | K10: 0 | L10: 1 | M10: 2 | N10: 23.5 % | O10: =PRODUCT(I10/N10) -> 17.0212766
B11: Yhteensä | E11: =SUM(E4:E10) -> 67 | F11: 0 | G11: 8 | H11: 17 | I11: 118 | J11: 38 | K11: 44 | L11: 28 | M11: 8 | N11: =PRODUCT(I11/O11) -> 40.6 % | O11: =SUM(O4:O10) -> 290.8007399 | P11: 0 | Q11: 0 | R11: 0 | S11: 0 | T11: 0 | U11: 0 | V11: 0 | W11: 0 | X11: 0 | Y11: 0 | Z11: 0 | AA11: 0 | AB11: 0 | AC11: 0 | AD11: 0 | AE11: 0
B12: Pesispörssi | D12: =SUM(F11:H11)+((I11-F11-G11)/3)+(E11/3)+(Z11*25)+(AA11*25)+(AB11*10)+(AC11*25)+(AD11*20)+(AE11*15) -> 84.0
B14: URA SUPERISSA | E14: OTT | F14: KUN | G14: LÖI | H14: TOI | I14: KL | K14: ka/L | L14: ka/T | M14: ka/KL | N14: K - % | P14: ENSIMMÄISET
B15: Runkosarja | E15: =PRODUCT(E11) -> 67 | F15: =PRODUCT(F11) -> 0 | G15: =PRODUCT(G11) -> 8 | H15: =PRODUCT(H11) -> 17 | I15: =PRODUCT(I11) -> 118 | K15: =PRODUCT((F15+G15)/E15) -> 0.12 | L15: =PRODUCT(H15/E15) -> 0.25 | M15: =PRODUCT(I15/E15) -> 1.76 | N15: =PRODUCT(N11) -> 40.6 % | O15: =PRODUCT(O11) -> 290.8007399 | P15: Ottelu
B16: Ylempi loppusarja | P16: Lyöty
B17: Alempi loppusarja | P17: Tuotu
B18: KAIKKI | E18: =SUM(E15:E17) -> 67 | F18: =SUM(F15:F17) -> 0 | G18: =SUM(G15:G17) -> 8 | H18: =SUM(H15:H17) -> 17 | I18: =SUM(I15:I17) -> 118 | K18: =PRODUCT((F18+G18)/E18) -> 0.12 | L18: =PRODUCT(H18/E18) -> 0.25 | M18: =PRODUCT(I18/E18) -> 1.76 | N18: =PRODUCT(I18/O18) -> 40.6 % | O18: =SUM(O15:O17) -> 290.8007399 | P18: Kunnari
B20: Seurat | D20: Manse PP = Mansen Pesäpallo (1978)
D21: KarKu = Karinaisten Kunto (1945)
D22: Turku-Pesis = Turku-Pesis (ent. Lännen Pallo) (1949)

Sheet NYP
B1: Päivi Aalto | E1: 12.12.1972
B2: YKKÖSPESIS | E2: Runkosarja | L2: Runkosarja TOP-10 | Q2: Jatkosarjat | X2: SUOMENSARJA | AA2: Runkosarja | AH2: Runkosarja TOP-10 | AM2: Jatkosarjat
B3: Vuosi | C3: Sija | D3: Seura | E3: OTT | F3: KUN | G3: LÖI | H3: TOI | I3: KL | J3: KL-% | L3: LÖI | M3: TOI | N3: L+T | O3: KL | Q3: OTT | R3: KUN | S3: LÖI | T3: TOI | U3: KL | V3: KL-% | X3: Vuosi | Y3: Sija | Z3: Seura | AA3: OTT | AB3: KUN | AC3: LÖI | AD3: TOI | AE3: KL | AF3: KL-% | AH3: LÖI | AI3: TOI | AJ3: L+T | AK3: KL | AM3: OTT | AN3: KUN | AO3: LÖI | AP3: TOI | AQ3: KL | AR3: KL-%
B4: 1991 | C4: 1. | D4: Manse PP
B5: 1994 | C5: 8. | D5: KarKu | E5: 22 | F5: 0 | G5: 11 | H5: 11 | I5: 105
B6: YHTEENSÄ | E6: =SUM(E4:E5) -> 22 | F6: =SUM(F4:F5) -> 0 | G6: =SUM(G4:G5) -> 11 | H6: =SUM(H4:H5) -> 11 | I6: =SUM(I4:I5) -> 105 | J6: 0.0 % | K6: =SUM(K4:K5) -> 0 | Q6: =SUM(Q4:Q5) -> 0 | R6: =SUM(R4:R5) -> 0 | S6: =SUM(S4:S5) -> 0 | T6: =SUM(T4:T5) -> 0 | U6: =SUM(U4:U5) -> 0 | V6: 0.0 % | W6: =SUM(W4:W5) -> 0 | X6: YHTEENSÄ | AA6: =SUM(AA4:AA5) -> 0 | AB6: =SUM(AB4:AB5) -> 0 | AC6: =SUM(AC4:AC5) -> 0 | AD6: =SUM(AD4:AD5) -> 0 | AE6: =SUM(AE4:AE5) -> 0 | AF6: 0.0 % | AG6: =SUM(AG4:AG5) -> 0 | AM6: =SUM(AM4:AM5) -> 0 | AN6: =SUM(AN4:AN5) -> 0 | AO6: =SUM(AO4:AO5) -> 0 | AP6: =SUM(AP4:AP5) -> 0 | AQ6: =SUM(AQ4:AQ5) -> 0 | AR6: 0.0 % | AS6: =SUM(AS4:AS5) -> 0
B8: KAIKKI OTTELUT | E8: OTT | F8: KUN | G8: LÖI | H8: TOI | I8: KL | J8: KL-% | L8: ka/L | M8: ka/T | N8: ka/l+t | O8: ka/kl | R8: Seurat | T8: Manse PP = Mansen Pesäpallo (1978)
B9: SUPERPESIS | E9: 67 | F9: 0 | G9: 8 | H9: 17 | I9: 118 | J9: 40.6 % | K9: =PRODUCT(I9/J9) -> 290.6403941 | L9: =PRODUCT((F9+G9)/E9) -> 0.12 | M9: =PRODUCT(H9/E9) -> 0.25 | N9: =PRODUCT((F9+G9+H9)/E9) -> 0.37 | O9: =PRODUCT(I9/E9) -> 1.76 | T9: KarKu = Karinaisten Kunto (1945)
B10: YKKÖSPESIS | E10: =PRODUCT(E6+Q6) -> 22 | F10: =PRODUCT(F6+R6) -> 0 | G10: =PRODUCT(G6+S6) -> 11 | H10: =PRODUCT(H6+T6) -> 11 | I10: =PRODUCT(I6+U6) -> 105 | J10: 0.0 % | K10: =PRODUCT(K6+W6) -> 0 | L10: =PRODUCT((F10+G10)/E10) -> 0.50 | M10: =PRODUCT(H10/E10) -> 0.50 | N10: =PRODUCT((F10+G10+H10)/E10) -> 1.00 | O10: =PRODUCT(I10/E10) -> 4.77 | T10: Turku-Pesis = Turku-Pesis (ent. Lännen Pallo) (1949)
B11: SUOMENSARJA | E11: =PRODUCT(AA6+AM6) -> 0 | F11: =PRODUCT(AB6+AN6) -> 0 | G11: =PRODUCT(AC6+AO6) -> 0 | H11: =PRODUCT(AD6+AP6) -> 0 | I11: =PRODUCT(AE6+AQ6) -> 0 | J11: 0.0 % | K11: =PRODUCT(AG6+AS6) -> 0 | L11: 0.00 | M11: 0.00 | N11: 0.00 | O11: 0.00
B12: YHTEENSÄ | E12: =SUM(E9:E11) -> 89 | F12: =SUM(F9:F11) -> 0 | G12: 19 | H12: 28 | I12: 223 | J12: 40.6 % | K12: =SUM(K9:K11) -> 290.6403941 | L12: =PRODUCT((F12+G12)/E12) -> 0.21 | M12: =PRODUCT(H12/E12) -> 0.31 | N12: =PRODUCT((F12+G12+H12)/E12) -> 0.53 | O12: =PRODUCT(I12/E12) -> 2.51
